bitfinex-derivatives/quotes_BTCF0:USTF0_20240917
["timestamp","ask_amount","ask_price","bid_price","bid_amount"]
[1726591916348,0.082055,60919.0,60918.0,0.0024621]
[1726591916349,0.362055,60919.0,60918.0,0.0024621]
[1726591916549,0.362055,60919.0,60918.0,0.0044621]
[1726591917162,0.363055,60919.0,60918.0,0.0094621]
[1726591917454,0.44511,60919.0,60918.0,0.0094621]
[1726591917656,0.91538491,60919.0,60918.0,0.0074621]
[1726591917853,0.082071,60907.0,60906.0,0.00246281]
[1726591918055,0.444142,60907.0,60906.0,0.00246281]
[1726591919159,0.445142,60907.0,60906.0,0.00646281]
[1726591920460,0.448142,60907.0,60906.0,0.004]
[1726591920650,1.948142,60907.0,60906.0,0.004]
[1726591921054,2.19389766,60907.0,60906.0,0.004]
[1726591921461,2.19389766,60907.0,60894.0,0.082088]
[1726591921462,0.082088,60895.0,60894.0,0.082088]
[1726591921647,2.02875566,60907.0,60892.0,0.3608]
[1726591921648,0.08209,60893.0,60892.0,0.3608]
[1726591921846,0.08209,60893.0,60892.0,0.442892]
[1726591922051,0.08209,60893.0,60892.0,0.3608]
[1726591922456,0.082094,60890.0,60889.0,0.01332745]
[1726591922650,0.082101,60885.0,60884.0,0.511]
[1726591922849,0.082102,60884.0,60883.0,0.00246325]
[1726591923251,0.082102,60884.0,60883.0,0.49522325]
[1726591923450,0.3608,60888.0,60887.0,0.082098]
[1726591923658,0.001,60893.0,60892.0,0.082092]
[1726591924871,0.08309,60893.0,60892.0,0.082092]
[1726591925376,0.001,60893.0,60892.0,0.082092]
[1726591925568,0.6408,60893.0,60886.0,0.082099]
[1726591925755,0.442898,60888.0,60887.0,0.082098]
[1726591926668,0.442898,60888.0,60883.0,0.01527887]
[1726591926669,0.082093,60892.0,60891.0,0.082093]
[1726591926855,0.002,60893.0,60892.0,0.082092]
[1726591927055,0.001,60893.0,60892.0,0.574772]
[1726591927364,0.001,60893.0,60892.0,1.256864]
[1726591927867,1.5,60906.0,60902.0,0.082074]
[1726591928162,0.082067,60910.0,60905.0,0.3608]
[1726591928465,0.36326312,60914.0,60905.0,0.3608]
[1726591928768,0.082067,60910.0,60909.0,0.082067]
[1726591929066,0.36326312,60914.0,60910.0,0.082066]
[1726591929258,0.36326312,60914.0,60905.0,0.37355827]
[1726591929463,0.36326312,60914.0,60913.0,0.082063]
[1726591929665,0.00246312,60914.0,60913.0,0.082063]
[1726591929862,0.082047,60926.0,60913.0,1.09252]
[1726591930067,0.3608,60928.0,60925.0,0.082047]
[1726591930372,0.0024624,60930.0,60923.0,0.082049]
[1726591930564,0.0024624,60930.0,60919.0,0.00246213]
[1726591930565,0.3632624,60930.0,60919.0,0.00246213]
[1726591930867,0.082048,60924.0,60919.0,0.00246213]
[1726591931265,0.34735863,60928.0,60919.0,0.00246213]
[1726591931266,0.06735863,60928.0,60919.0,0.00246213]
[1726591931464,0.06735863,60928.0,60918.0,0.3608]
[1726591931672,0.082036,60933.0,60919.0,0.28]
[1726591931865,0.1557,60938.0,60919.0,0.28]
[1726591932065,0.082042,60929.0,60926.0,0.082046]
[1726591932566,0.082044,60928.0,60923.0,0.3608]
[1726591932765,0.082045,60927.0,60923.0,0.3608]
[1726591932966,0.082046,60926.0,60925.0,0.002]
[1726591933669,0.28,60927.0,60926.0,0.002]
[1726591933863,0.362044,60927.0,60926.0,0.002]
[1726591934167,0.082046,60926.0,60923.0,0.3608]
[1726591934472,0.082046,60926.0,60925.0,0.002]
[1726591934767,0.4099271,60926.0,60925.0,0.002]
[1726591934971,0.5551271,60926.0,60925.0,0.002]
[1726591935265,0.5551271,60926.0,60911.0,0.3608]
[1726591935266,0.082061,60915.0,60911.0,0.3608]
[1726591935473,0.362061,60915.0,60911.0,0.3608]
[1726591935777,0.36326246,60919.0,60911.0,0.3608]
[1726591935778,0.00246246,60919.0,60918.0,0.082057]
[1726591936068,1.50246246,60919.0,60911.0,0.7216]
[1726591936260,1.50246246,60919.0,60918.0,0.082057]
[1726591937163,1.50346246,60919.0,60918.0,0.444857]
[1726591937563,1.50346246,60919.0,60918.0,0.447857]
[1726591937767,1.50346246,60919.0,60918.0,0.087057]
[1726591938476,0.00346246,60919.0,60918.0,1.540337]
[1726591939158,0.00346246,60919.0,60918.0,1.535337]
[1726591939363,0.00346246,60919.0,60918.0,0.935337]
[1726591939768,0.00446246,60919.0,60918.0,1.535337]
[1726591940158,0.00446246,60919.0,60918.0,0.442857]
[1726591940363,0.00346246,60919.0,60918.0,0.935337]
[1726591940564,0.00446246,60919.0,60918.0,0.935337]
[1726591941164,0.28446246,60919.0,60914.0,0.00246213]
[1726591941367,0.28446246,60919.0,60916.0,0.082058]
[1726591941368,0.06736295,60918.0,60916.0,0.082058]
[1726591941673,0.082061,60915.0,60914.0,0.00246213]
[1726591941860,0.14942292,60915.0,60914.0,0.00246213]
[1726591942065,0.082065,60912.0,60911.0,0.31872962]
[1726591943065,0.082065,60912.0,60911.0,0.40079562]
[1726591943264,0.001,60912.0,60911.0,0.40079562]
[1726591943463,0.001,60912.0,60911.0,1.49331562]
[1726591943671,0.082061,60915.0,60914.0,0.082062]
[1726591944769,0.00246239,60919.0,60918.0,0.082057]
[1726591945363,0.00246239,60919.0,60918.0,1.174537]
[1726591945561,0.00246239,60919.0,60918.0,0.574537]
[1726591945761,0.00246239,60919.0,60918.0,1.174537]
[1726591945972,0.08205,60924.0,60923.0,0.08205]
[1726591946170,0.1494061,60924.0,60923.0,0.08205]
[1726591947372,0.1504061,60924.0,60923.0,0.08205]
[1726591947578,0.0683561,60924.0,60923.0,0.44285]
[1726591947765,0.0683561,60924.0,60923.0,0.92031719]
[1726591947971,0.002,60924.0,60923.0,0.92031719]
[1726591948270,0.002,60924.0,60923.0,0.93347943]
[1726591948983,0.084048,60924.0,60923.0,0.44103943]
[1726591949271,0.084048,60924.0,60919.0,0.00246214]
[1726591949272,0.082054,60920.0,60919.0,0.00246214]
[1726591949476,0.164108,60920.0,60919.0,0.00246214]
[1726591950690,0.164108,60920.0,60912.0,0.3608]
[1726591950691,0.082063,60913.0,60912.0,0.3608]
[1726591950870,0.00246256,60917.0,60915.0,0.082059]
[1726591950871,0.082062,60916.0,60915.0,0.082059]
[1726591953078,0.082063,60913.0,60912.0,0.37392593]
[1726591953281,0.082063,60913.0,60912.0,0.45599093]
[1726591953585,0.082063,60913.0,60912.0,0.3608]
[1726591953888,0.082063,60913.0,60912.0,0.442865]
[1726591954290,0.083063,60913.0,60912.0,0.442865]
[1726591954678,0.165126,60913.0,60912.0,0.3608]
[1726591954877,0.083063,60913.0,60912.0,0.3608]
[1726591955479,0.165126,60913.0,60912.0,0.3608]
[1726591955976,0.445126,60913.0,60912.0,0.3608]
[1726591956382,0.444126,60913.0,60912.0,0.3608]
[1726591956585,0.082082,60899.0,60898.0,0.3608]
[1726591956779,0.362082,60899.0,60898.0,0.3608]
[1726591957081,0.082096,60889.0,60887.0,0.08456055]
[1726591957283,0.28246332,60893.0,60887.0,0.00246355]
[1726591957484,0.36455332,60893.0,60887.0,0.00246355]
[1726591957885,0.36455332,60893.0,60887.0,0.08456155]
[1726591958080,0.082097,60888.0,60887.0,0.00246355]
[1726591959181,0.00246332,60893.0,60887.0,0.36326355]
[1726591959383,0.001,60889.0,60888.0,0.082097]
[1726591959974,0.002,60889.0,60888.0,0.082097]
[1726591960176,0.083096,60889.0,60888.0,0.082097]
[1726591960978,0.084096,60889.0,60888.0,0.082097]
[1726591961874,0.082097,60888.0,60887.0,0.00246355]
[1726591962280,0.362097,60888.0,60887.0,0.00246355]
[1726591962484,0.444194,60888.0,60887.0,0.00246355]
[1726591963186,0.445194,60888.0,60887.0,0.00246355]
[1726591963688,0.446194,60888.0,60887.0,0.00246355]
[1726591963887,1.01978639,60888.0,60874.0,0.3608]
[1726591964090,0.082108,60880.0,60879.0,0.082109]
[1726591964395,0.082108,60880.0,60870.0,0.01538253]
[1726591964396,0.08211,60879.0,60878.0,0.082109]
[1726591964683,0.00246412,60883.0,60881.0,0.082105]
[1726591964884,0.082105,60882.0,60870.0,0.01538253]
[1726591965090,0.082111,60878.0,60872.0,0.3608]
[1726591965281,0.082115,60876.0,60872.0,0.3608]
[1726591965593,0.082117,60873.0,60872.0,0.442919]
[1726591966288,0.082113,60877.0,60876.0,0.082112]
[1726591966685,0.082117,60873.0,60872.0,0.3608]
[1726591967086,0.083117,60873.0,60872.0,0.3608]
[1726591968296,0.001,60873.0,60872.0,0.442919]
[1726591968592,0.083113,60877.0,60876.0,0.082113]
[1726591968781,0.084113,60877.0,60876.0,0.082113]
[1726591969186,0.082117,60874.0,60873.0,0.082117]
[1726591970402,0.084117,60874.0,60873.0,0.082117]
[1726591970989,0.002,60874.0,60873.0,0.082117]
[1726591971587,0.084116,60874.0,60873.0,0.082117]
[1726591971789,0.002,60874.0,60873.0,0.574957]
[1726591971993,0.002,60874.0,60873.0,1.174957]
[1726591972386,0.002,60874.0,60873.0,0.574957]
[1726591972795,0.084116,60874.0,60873.0,0.574957]
[1726591973285,0.002,60874.0,60873.0,0.574957]
[1726591973488,0.084116,60874.0,60873.0,0.574957]
[1726591973896,0.002,60874.0,60873.0,0.574957]
[1726591974095,0.002,60874.0,60873.0,1.174957]
[1726591974399,0.002,60874.0,60873.0,0.574957]
[1726591974695,0.002,60874.0,60873.0,1.174957]
[1726591974999,0.002,60874.0,60873.0,1.257074]
[1726591975197,0.002,60874.0,60873.0,1.174957]
[1726591975498,0.002,60874.0,60873.0,0.574957]
[1726591975688,0.002,60874.0,60873.0,0.082117]
[1726591975890,0.002,60874.0,60873.0,0.574957]
[1726591977592,0.002,60874.0,60873.0,0.082117]
[1726591978297,0.002,60874.0,60873.0,0.574957]
[1726591978897,0.002,60874.0,60873.0,0.164234]
[1726591979097,0.002,60874.0,60873.0,0.657074]
[1726591979299,0.3608,60890.0,60889.0,0.082096]
[1726591980203,0.00246332,60893.0,60892.0,0.07363606]
[1726591981099,0.00096001,60901.0,60900.0,0.082081]
[1726591981314,0.3608,60914.0,60913.0,0.082063]
[1726591981606,0.5055,60919.0,60901.0,0.082079]
[1726591981607,0.082065,60912.0,60909.0,0.08453133]
[1726591981897,0.36452056,60917.0,60909.0,0.00246233]
[1726591982103,0.00246256,60917.0,60913.0,0.082062]
[1726591982301,0.082059,60916.0,60913.0,0.082062]
[1726591982492,0.082059,60916.0,60909.0,0.00246233]
[1726591982905,0.082059,60916.0,60909.0,0.01545504]
[1726591983096,0.00346256,60917.0,60910.0,0.082067]
[1726591983296,0.28,60913.0,60910.0,0.082067]
[1726591983693,0.442862,60914.0,60910.0,0.082067]
[1726591983896,0.082064,60913.0,60910.0,0.082067]
[1726591984099,0.082066,60911.0,60909.0,0.00546233]
[1726591984587,0.3608,60914.0,60908.0,0.33196877]
[1726591984789,0.001,60913.0,60910.0,0.001]
[1726591985001,0.001,60913.0,60912.0,0.362065]
[1726591985599,0.001,60916.0,60915.0,0.082061]
[1726591985800,0.00246253,60928.0,60915.0,0.3608]
[1726591986197,0.00246253,60928.0,60920.0,0.3608]
[1726591986396,0.082046,60927.0,60922.0,0.08205]
[1726591986603,0.3608,60926.0,60922.0,0.08205]
[1726591986905,0.3608,60926.0,60920.0,0.3608]
[1726591987089,0.082047,60925.0,60921.0,0.082051]
[1726591987289,0.442846,60926.0,60920.0,0.3608]
[1726591987488,0.442846,60926.0,60920.0,0.37412316]
[1726591988195,0.3668,60926.0,60920.0,0.37412316]
[1726591989004,0.3668,60926.0,60925.0,0.082047]
[1726591989299,0.3718,60926.0,60925.0,0.082047]
[1726591989491,0.011,60926.0,60925.0,0.082047]
[1726591990095,0.016,60926.0,60925.0,0.082047]
[1726591990305,0.022,60926.0,60925.0,0.082047]
[1726591990903,0.00246253,60928.0,60927.0,0.164088]
[1726591991100,0.00246253,60928.0,60927.0,0.082044]
[1726591991602,0.00246253,60928.0,60927.0,0.164088]
[1726591991805,0.00246253,60928.0,60927.0,0.082044]
[1726591993205,0.00246253,60928.0,60927.0,0.083044]
[1726591993206,0.00846253,60928.0,60927.0,0.083044]
[1726591993412,0.006,60928.0,60927.0,0.083044]
[1726591993705,0.17314814,60928.0,60927.0,0.09778331]
[1726591993895,0.17314814,60928.0,60927.0,0.085044]
[1726591994208,0.08883061,60928.0,60927.0,0.085044]
[1726591994404,0.07583061,60928.0,60927.0,0.086044]
[1726591994598,0.07583061,60928.0,60925.0,0.36310762]
[1726591994903,0.07583061,60927.0,60926.0,0.082046]
[1726591996298,0.07583061,60927.0,60926.0,0.936492]
[1726591996498,0.07583061,60927.0,60926.0,0.082046]
[1726591996704,1.57583061,60927.0,60926.0,0.082046]
[1726591996910,1.57583061,60927.0,60926.0,0.085046]
[1726591997501,0.07583061,60927.0,60926.0,0.170092]
[1726591998105,0.07583061,60927.0,60926.0,0.088046]
[1726591998512,0.07583061,60927.0,60926.0,0.170092]
[1726591998712,0.07583061,60927.0,60926.0,0.14579878]
[1726591998913,0.3608,60934.0,60933.0,0.082036]
[1726591999313,0.3608,60934.0,60933.0,0.164072]
[1726591999806,0.5209404,60934.0,60933.0,0.082036]
[1726592000008,0.5209404,60934.0,60933.0,0.854396]
[1726592000210,0.5209404,60934.0,60933.0,0.164072]
[1726592000442,0.5309404,60934.0,60933.0,1.257432]
[1726592000709,0.3708,60934.0,60933.0,1.537432]
[1726592001103,0.01,60934.0,60933.0,1.980268]
[1726592001303,0.3608,60940.0,60939.0,0.082028]
[1726592002212,0.3608,60940.0,60933.0,0.01428375]
[1726592002607,0.3718,60940.0,60939.0,0.083028]
[1726592003615,0.459827,60940.0,60939.0,0.083028]
[1726592004111,0.082035,60935.0,60934.0,0.082035]
[1726592004315,0.3608,60935.0,60934.0,0.082035]
[1726592004813,0.3848,60940.0,60939.0,0.082028]
[1726592005311,0.082032,60937.0,60935.0,0.082032]
[1726592005515,0.3848,60940.0,60929.0,0.01548865]
[1726592005831,0.3608,60935.0,60929.0,0.01548865]
[1726592006512,0.3678,60935.0,60934.0,0.001]
[1726592007205,0.3678,60935.0,60934.0,0.083035]
[1726592007410,0.3728,60935.0,60934.0,0.084035]
[1726592007917,0.3668,60935.0,60934.0,0.65739]
[1726592008714,0.006,60935.0,60934.0,1.01819]
[1726592008918,0.3608,60947.0,60946.0,0.082019]
[1726592010022,0.3608,60947.0,60939.0,0.3608]
[1726592010315,0.3608,60947.0,60939.0,0.442828]
[1726592010524,0.3608,60947.0,60939.0,0.36326129]
[1726592010713,0.082024,60943.0,60939.0,0.45820317]
[1726592010907,0.3738,60947.0,60942.0,0.082023]
[1726592010908,0.3758,60947.0,60942.0,0.082023]
[1726592011113,0.3758,60947.0,60939.0,0.37617517]
[1726592011315,0.082025,60942.0,60939.0,0.46274188]
[1726592011624,0.3628,60947.0,60939.0,0.38671388]
[1726592011922,0.3618,60947.0,60946.0,0.082019]
[1726592012117,0.3618,60947.0,60942.0,0.00246128]
[1726592012718,0.3618,60947.0,60946.0,0.082019]
[1726592012922,0.3618,60947.0,60942.0,0.08448428]
[1726592013122,0.3618,60947.0,60943.0,0.082023]
[1726592013312,0.442818,60947.0,60942.0,0.00246128]
[1726592013513,0.3608,60947.0,60946.0,0.082019]
[1726592015121,0.3628,60947.0,60946.0,0.082019]
[1726592015725,0.52290205,60947.0,60946.0,0.04452572]
[1726592016624,0.082019,60946.0,60942.0,0.08448413]
[1726592016925,0.16010205,60945.0,60944.0,0.082022]
[1726592018020,0.16010763,60945.0,60944.0,0.082022]
[1726592018222,0.16010763,60945.0,60944.0,0.272022]
[1726592018526,0.16110763,60945.0,60944.0,0.283022]
[1726592019118,0.16110763,60945.0,60944.0,0.093022]
[1726592019618,0.43312763,60945.0,60944.0,0.0239504]
[1726592019825,0.46121564,60945.0,60944.0,0.0239504]
[1726592020021,0.46121564,60945.0,60944.0,0.0269504]
[1726592020522,0.64894,60945.0,60944.0,0.013]
[1726592020730,0.082023,60943.0,60942.0,0.00246113]
[1726592021025,0.082024,60942.0,60934.0,0.00246132]
[1726592021231,0.3608,60935.0,60934.0,0.08449632]
[1726592021419,0.54636071,60935.0,60934.0,0.08449632]
[1726592021817,0.18556071,60935.0,60934.0,0.16653132]
[1726592022125,0.10126507,60935.0,60934.0,0.16653132]
[1726592022320,0.00246158,60942.0,60941.0,0.082026]
[1726592022523,0.00246158,60942.0,60941.0,0.272026]
[1726592022831,0.08676288,60942.0,60941.0,0.354052]
[1726592023422,0.08676288,60942.0,60941.0,0.436078]
[1726592023718,0.00246158,60942.0,60941.0,0.437078]
[1726592024028,0.3608,60954.0,60953.0,0.082009]
[1726592024428,0.442808,60954.0,60953.0,0.082009]
[1726592025424,0.082011,60953.0,60949.0,0.082014]
[1726592025621,0.082011,60953.0,60947.0,0.00246114]
[1726592025818,0.442816,60948.0,60947.0,0.00246114]
[1726592026615,0.082016,60948.0,60947.0,0.00246114]
[1726592026927,0.082016,60948.0,60947.0,0.01529905]
[1726592027329,0.442816,60948.0,60947.0,0.01529905]
[1726592027525,0.00088,60965.0,60948.0,0.574216]
[1726592027731,0.3608,60984.0,60964.0,0.6408]
[1726592027732,0.1515,60971.0,60964.0,0.6408]
[1726592027937,0.1515,60971.0,60970.0,0.361987]
[1726592028130,0.442777,60978.0,60971.0,0.081985]
[1726592028432,0.24710829,60977.0,60966.0,0.28]
[1726592028820,0.24710829,60977.0,60971.0,0.081985]
[1726592029117,0.24710829,60977.0,60966.0,0.28]
[1726592029118,0.081979,60976.0,60966.0,0.28]
[1726592029319,0.3608,60972.0,60963.0,0.3608]
[1726592029520,0.1414,60971.0,60963.0,0.3608]
[1726592030123,0.223386,60971.0,60966.0,0.081992]
[1726592030730,0.07578946,60970.0,60966.0,0.081992]
[1726592031027,0.07578946,60969.0,60966.0,0.081992]
[1726592031231,0.07578946,60968.0,60966.0,0.081992]
[1726592031432,0.07578905,60967.0,60966.0,0.001]
[1726592031731,0.07578905,60967.0,60966.0,0.281]
[1726592032127,0.07578905,60967.0,60966.0,0.362992]
[1726592033231,0.27529724,60967.0,60966.0,0.24481557]
[1726592033832,0.19950819,60967.0,60966.0,0.24481557]
[1726592034330,0.21350819,60967.0,60966.0,0.24481557]
[1726592035826,0.21350819,60967.0,60966.0,0.082992]
[1726592036123,0.081997,60963.0,60960.0,0.00246041]
[1726592036330,0.18550819,60962.0,60961.0,0.081999]
[1726592037136,0.18550819,60962.0,60956.0,0.33225947]
[1726592037331,0.18550819,60961.0,60958.0,0.28]
[1726592037630,0.011,60963.0,60959.0,0.082001]
[1726592037631,0.18551002,60960.0,60959.0,0.082001]
[1726592038721,0.08427261,60960.0,60959.0,0.082001]
[1726592038928,0.01,60962.0,60961.0,0.081999]
[1726592039133,0.011,60963.0,60962.0,0.081997]
[1726592039336,0.081996,60964.0,60962.0,0.081997]
[1726592039832,0.2921,60966.0,60963.0,0.081996]
[1726592040028,0.374092,60966.0,60963.0,0.081996]
[1726592040223,0.081994,60965.0,60963.0,0.081996]
[1726592040628,0.081996,60963.0,60962.0,0.001]
[1726592041224,0.163992,60963.0,60962.0,0.001]
[1726592041833,0.082003,60958.0,60957.0,0.00246053]
[1726592042432,0.082004,60957.0,60944.0,0.3271]
[1726592042639,0.3608,60955.0,60947.0,0.0157081]
[1726592042836,0.082016,60948.0,60947.0,0.00246114]
[1726592043133,0.164032,60948.0,60947.0,0.00246114]
[1726592043326,1.256272,60948.0,60947.0,0.00246114]
[1726592043523,1.5,60948.0,60947.0,0.00246114]
[1726592043727,1.582016,60948.0,60947.0,0.00246114]
[1726592044132,1.5,60948.0,60947.0,0.00246114]
[1726592044337,1.5,60948.0,60947.0,0.27547814]
[1726592044929,1.5,60948.0,60947.0,0.28147814]
[1726592045136,1.5,60948.0,60947.0,0.09147814]
[1726592045332,1.5,60948.0,60947.0,0.00346114]
[1726592045333,1.854032,60948.0,60947.0,0.00346114]
[1726592045535,1.855032,60948.0,60947.0,0.00946114]
[1726592045835,2.10181273,60948.0,60947.0,0.00946114]
[1726592046041,0.082034,60935.0,60932.0,0.6879]
[1726592046232,3.11203673,60948.0,60932.0,0.3608]
[1726592046233,0.5508,60943.0,60932.0,0.3608]
[1726592046440,0.3608,60943.0,60933.0,0.082036]
[1726592046641,0.082029,60939.0,60933.0,0.082036]
[1726592046836,0.082032,60937.0,60933.0,0.082036]
[1726592047043,0.3608,60943.0,60934.0,0.01570691]
[1726592047243,0.082024,60942.0,60937.0,0.27203]
[1726592047439,0.3608,60943.0,60937.0,0.19]
[1726592047945,1.501,60948.0,60942.0,0.19]
[1726592048242,1.5,60948.0,60947.0,0.272017]
[1726592049341,1.5,60948.0,60947.0,0.082017]
[1726592049543,1.503,60948.0,60939.0,0.442828]
[1726592049738,0.082022,60944.0,60939.0,0.082028]
[1726592049938,0.082023,60943.0,60939.0,0.082028]
[1726592050240,0.082019,60946.0,60936.0,0.082032]
[1726592050434,0.1449,60942.0,60936.0,0.082032]
[1726592050635,0.082028,60940.0,60937.0,0.08203]
[1726592051337,0.082028,60940.0,60938.0,0.082029]
[1726592051641,0.082028,60939.0,60936.0,0.007]
[1726592051841,0.1459,60942.0,60936.0,0.007]
[1726592052233,0.001,60942.0,60941.0,0.362026]
[1726592052546,0.001,60946.0,60945.0,0.08202]
[1726592052733,0.001,60946.0,60945.0,0.16404]
[1726592052936,0.0024612,60952.0,60947.0,0.082017]
[1726592053237,0.0024612,60952.0,60951.0,0.524824]
[1726592053437,0.2912,60971.0,60961.0,0.081999]
[1726592053438,0.4361,60971.0,60961.0,0.081999]
[1726592053650,0.00246048,60972.0,60961.0,1.13292]
[1726592053945,0.00246048,60972.0,60967.0,0.28]
[1726592054335,0.00246048,60972.0,60971.0,0.081985]
[1726592054537,1.50246048,60972.0,60967.0,0.00246025]
[1726592054946,1.50246048,60972.0,60968.0,0.081989]
[1726592055147,0.00246048,60972.0,60970.0,0.081986]
[1726592055546,0.00246048,60972.0,60971.0,0.081985]
[1726592055737,0.00246048,60972.0,60971.0,0.442785]
[1726592055738,0.02846048,60972.0,60971.0,0.442785]
[1726592056141,1.52846048,60972.0,60971.0,0.722785]
[1726592056447,0.014,60972.0,60971.0,1.814825]
[1726592056646,0.014,60972.0,60971.0,1.214825]
[1726592056843,0.014,60972.0,60971.0,1.814825]
[1726592057051,0.3015,60993.0,60989.0,0.08196]
[1726592058156,0.1511,61001.0,60988.0,0.28]
[1726592058448,0.3015,61003.0,60996.0,0.081951]
[1726592058649,0.383443,61003.0,60992.0,0.3608]
[1726592058843,0.3015,61003.0,60992.0,0.3608]
[1726592059043,0.3015,61003.0,60993.0,0.28]
[1726592059348,0.3608,61009.0,61003.0,0.081942]
[1726592059652,0.6408,61009.0,60997.0,0.3608]
[1726592059853,0.081946,61001.0,60997.0,0.3608]
[1726592060250,0.081947,61000.0,60997.0,0.37357374]
[1726592060948,1.581949,60999.0,60997.0,0.3608]
[1726592061155,0.226049,60998.0,60997.0,0.001]
[1726592061343,0.9967,60998.0,60991.0,0.00245886]
[1726592061539,0.1557,60997.0,60991.0,0.01578665]
[1726592061742,0.1557,60997.0,60987.0,0.3608]
[1726592061743,0.1557,60997.0,60989.0,0.081961]
[1726592061945,1.5,60990.0,60987.0,0.37367772]
[1726592062551,1.5,60990.0,60989.0,0.081961]
[1726592063348,1.5,60990.0,60987.0,0.37367772]
[1726592063545,1.5,60990.0,60989.0,0.081961]
[1726592064352,1.503,60990.0,60989.0,0.081961]
[1726592064654,1.503,60990.0,60987.0,0.37367772]
[1726592064852,1.506,60990.0,60987.0,0.37367772]
[1726592065157,1.506,60990.0,60987.0,0.01287772]
[1726592065360,1.506,60990.0,60985.0,0.00245915]
[1726592065746,0.006,60990.0,60979.0,0.3608]
[1726592065947,0.003,60990.0,60982.0,0.28]
[1726592066250,0.011,60990.0,60989.0,0.001]
[1726592066956,0.004,60990.0,60984.0,0.081967]
[1726592067153,0.004,60990.0,60982.0,0.28]
[1726592067348,0.004,60990.0,60986.0,0.081964]
[1726592067749,0.008,60990.0,60989.0,0.001]
[1726592067967,0.009,60990.0,60989.0,0.082961]
[1726592068457,0.01,60990.0,60989.0,0.082961]
[1726592069046,0.014,60990.0,60989.0,0.082961]
[1726592069253,0.014,60990.0,60989.0,0.09615468]
[1726592069455,0.09596,60990.0,60989.0,0.01419368]
[1726592069650,0.45676,60990.0,60989.0,0.01419368]
[1726592069847,0.08796,60990.0,60989.0,0.01319368]
[1726592070061,0.09296,60990.0,60985.0,0.00245915]
[1726592070258,0.011,60990.0,60985.0,0.00245915]
[1726592070770,0.011,60990.0,60989.0,0.081961]
[1726592071063,0.011,60990.0,60989.0,0.442761]
[1726592071261,0.014,60990.0,60989.0,0.082961]
[1726592071455,0.09596,60990.0,60989.0,0.001]
[1726592071764,0.09096,60990.0,60989.0,0.001]
[1726592072166,0.08996,60990.0,60989.0,0.001]
[1726592072358,0.09596,60990.0,60989.0,0.001]
[1726592073152,1.10588,60990.0,60973.0,0.3271]
[1726592073359,0.3608,60974.0,60968.0,0.00212]
[1726592073560,0.3608,60980.0,60970.0,0.19]
[1726592073860,1.5,60973.0,60972.0,0.081983]
[1726592074066,1.5,60973.0,60970.0,0.19]
[1726592074261,0.081984,60972.0,60968.0,0.081989]
[1726592074764,1.5,60973.0,60970.0,0.081986]
[1726592075268,1.5,60973.0,60967.0,0.19]
[1726592075479,0.001,60972.0,60968.0,0.014]
[1726592075866,0.001,60972.0,60969.0,0.081987]
[1726592076062,1.501,60973.0,60972.0,0.081984]
[1726592077169,1.502,60973.0,60972.0,0.091984]
[1726592077664,0.002,60973.0,60972.0,0.091984]
[1726592077970,0.001,60973.0,60972.0,0.091984]
[1726592078359,0.002,60973.0,60972.0,0.104984]
[1726592078663,1.5,60973.0,60972.0,0.186968]
[1726592078866,0.081961,60990.0,60983.0,0.081969]
[1726592079162,0.1536,60991.0,60983.0,0.081969]
[1726592079363,0.1536,60991.0,60990.0,0.08196]
[1726592079555,0.1536,60991.0,60990.0,0.27196]
[1726592079755,1.6536,60991.0,60990.0,0.27196]
[1726592080967,1.6626,60991.0,60990.0,0.09573784]
[1726592081360,1.509,60991.0,60990.0,0.28573784]
[1726592081657,1.509,60991.0,60990.0,0.33455392]
[1726592081864,1.516,60991.0,60990.0,0.28673784]
[1726592082260,0.016,60991.0,60990.0,0.28673784]
[1726592082468,0.016,60991.0,60990.0,1.46057784]
[1726592082667,0.016,60991.0,60990.0,1.5424957]
[1726592082984,0.00074986,60991.0,60990.0,1.86433171]
[1726592083160,0.00074986,60991.0,60990.0,1.94594967]
[1726592083356,0.00074986,60991.0,60990.0,1.26433171]
[1726592083972,0.00074986,60991.0,60990.0,1.13941784]
[1726592084170,0.00074986,60991.0,60990.0,0.64753784]
[1726592085362,0.00074986,60991.0,60990.0,0.09673784]
[1726592085566,0.00074986,60991.0,60990.0,0.01477784]
[1726592086372,1.50074986,60991.0,60990.0,0.01477784]
[1726592087872,1.50074986,60991.0,60990.0,0.09673784]
[1726592089775,1.50074986,60991.0,60990.0,0.01477784]
[1726592090272,0.081967,60985.0,60979.0,0.00245965]
[1726592090482,0.081973,60980.0,60979.0,0.00245965]
[1726592090674,0.1556,60984.0,60979.0,0.00245965]
[1726592090983,0.081972,60981.0,60979.0,0.01506985]
[1726592091165,0.081972,60981.0,60979.0,0.00245965]
[1726592091767,1.5,60980.0,60979.0,0.00545965]
[1726592091974,1.5,60980.0,60977.0,0.04899104]
[1726592092174,0.081977,60977.0,60976.0,0.06175604]
[1726592092371,0.081978,60976.0,60972.0,0.04904301]
[1726592092570,0.081978,60976.0,60971.0,0.01486164]
[1726592092766,1.5,60975.0,60971.0,0.00245968]
[1726592093974,1.5,60975.0,60974.0,0.361981]
[1726592094975,1.5,60975.0,60974.0,0.42730239]
[1726592095178,0.00245992,60980.0,60979.0,0.081974]
[1726592095374,0.00245992,60980.0,60974.0,0.28]
[1726592095375,0.001,60976.0,60975.0,0.081979]
[1726592095774,1.5,60976.0,60975.0,0.08198]
[1726592096479,1.5,60976.0,60975.0,0.09598]
[1726592096480,1.501,60976.0,60975.0,0.09598]
[1726592097179,1.501,60976.0,60975.0,0.10858219]
[1726592098180,1.501,60976.0,60975.0,0.12258219]